bitfinex/quotes_BTCUSD_20210402
["timestamp","ask_amount","ask_price","bid_price","bid_amount"]
[1617392339755,0.05,58890.0,58873.0,0.0058]
[1617392339756,0.225,58884.0,58873.0,0.0058]
[1617392339956,0.03473665,58885.0,58874.0,0.88526961]
[1617392340155,0.02605508,58894.0,58875.0,0.39790565]
[1617392340354,0.02605508,58894.0,58880.0,0.0042]
[1617392340949,0.02605508,58894.0,58884.0,0.1206631]
[1617392341349,0.02605508,58894.0,58884.0,0.1250631]
[1617392341552,0.02105508,58894.0,58884.0,0.1250631]
[1617392341976,0.02105508,58894.0,58885.0,0.40415066]
[1617392342384,0.13578547,58894.0,58886.0,0.16]
[1617392342779,0.02105508,58894.0,58885.0,0.40415066]
[1617392343579,0.13578547,58894.0,58885.0,0.40415066]
[1617392343784,0.254724,58890.0,58885.0,0.40415066]
[1617392347001,0.254724,58890.0,58885.0,0.41210915]
[1617392350160,0.249724,58890.0,58885.0,0.41210915]
[1617392350361,0.249724,58890.0,58886.0,0.388519]
[1617392350564,0.02105508,58894.0,58888.0,0.388519]
[1617392350760,0.002626,58890.0,58889.0,0.25195286]
[1617392350956,0.002626,58890.0,58889.0,0.64047186]
[1617392351358,0.002626,58890.0,58889.0,0.82047186]
[1617392352572,0.002626,58890.0,58889.0,0.82843609]
[1617392353177,0.002626,58890.0,58889.0,1.7137057]
[1617392353774,0.002626,58890.0,58889.0,1.79762672]
[1617392354378,0.002626,58890.0,58889.0,0.91235711]
[1617392356399,0.002626,58890.0,58889.0,0.66040425]
[1617392356800,0.002626,58890.0,58889.0,0.57648323]
[1617392357405,0.002626,58890.0,58889.0,0.18796423]
[1617392357607,0.618836,58890.0,58889.0,0.00796423]
[1617392358231,0.873559,58890.0,58889.0,0.00796423]
[1617392358634,0.545446,58890.0,58889.0,0.00796423]
[1617392358830,0.487096,58890.0,58889.0,0.00796423]
[1617392359436,0.487096,58890.0,58889.0,3.96796423]
[1617392359437,0.002626,58890.0,58889.0,3.96796423]
[1617392359635,0.002626,58890.0,58889.0,5.58648323]
[1617392359835,0.002626,58890.0,58889.0,5.67040425]
[1617392361450,0.002626,58890.0,58889.0,1.21040425]
[1617392361661,0.002626,58890.0,58889.0,0.09188525]
[1617392361662,1.86299639,58890.0,58889.0,0.09188525]
[1617392361859,0.62299639,58890.0,58889.0,0.00796423]
[1617392362254,0.96264939,58890.0,58889.0,0.00796423]
[1617392362461,1.17764939,58890.0,58889.0,0.00990623]
[1617392362659,1.062919,58890.0,58889.0,0.00990623]
[1617392362859,0.508266,58890.0,58889.0,0.00990623]
[1617392363076,0.384386,58890.0,58889.0,0.00990623]
[1617392363276,0.384386,58890.0,58889.0,2.19990623]
[1617392363477,0.002626,58890.0,58889.0,2.91342523]
[1617392364277,0.002626,58890.0,58889.0,0.33490623]
[1617392364582,0.002626,58890.0,58889.0,0.00990623]
[1617392364779,0.142366,58893.0,58889.0,0.00990623]
[1617392365379,0.11473039,58892.0,58889.0,0.00990623]
[1617392365598,0.254711,58891.0,58889.0,0.00990623]
[1617392365800,3.75473039,58890.0,58889.0,0.00990623]
[1617392366394,4.40973039,58890.0,58889.0,0.00990623]
[1617392366598,0.254711,58891.0,58889.0,0.00990623]
[1617392366999,0.304711,58891.0,58889.0,0.00990623]
[1617392367195,0.254711,58891.0,58889.0,0.00990623]
[1617392368000,0.304711,58891.0,58889.0,0.00990623]
[1617392368432,0.254711,58891.0,58889.0,0.00490623]
[1617392369831,0.249711,58891.0,58889.0,0.00490623]
[1617392372654,0.11473039,58890.0,58889.0,0.00490623]
[1617392372854,4.02,58890.0,58889.0,0.00490623]
[1617392373058,5.21467413,58890.0,58889.0,0.00490623]
[1617392373251,5.26467413,58890.0,58889.0,0.00490623]
[1617392373465,5.61983937,58890.0,58889.0,0.00490623]
[1617392373869,1.48510898,58890.0,58889.0,0.00490623]
[1617392374070,0.05,58890.0,58889.0,0.00490623]
[1617392374269,0.634601,58891.0,58889.0,0.00490623]
[1617392374471,0.244111,58891.0,58889.0,0.00761023]
[1617392375671,3.34473039,58890.0,58889.0,0.00761023]
[1617392375872,3.63948039,58890.0,58889.0,0.00761023]
[1617392376094,4.17975,58890.0,58889.0,0.00761023]
[1617392376300,4.29701757,58890.0,58889.0,0.00761023]
[1617392376499,0.95228718,58890.0,58889.0,0.00761023]
[1617392376697,0.41201757,58890.0,58889.0,0.00761023]
[1617392377094,2.80233718,58890.0,58889.0,0.00761023]
[1617392377295,3.20228092,58890.0,58889.0,0.00761023]
[1617392377495,0.95233718,58890.0,58889.0,0.00761023]
[1617392377695,0.36233718,58890.0,58889.0,0.00761023]
[1617392377896,0.06758718,58890.0,58889.0,0.00761023]
[1617392378301,0.06758718,58890.0,58889.0,0.01216148]
[1617392379055,3.09726757,58890.0,58889.0,0.01216148]
[1617392379254,3.75726757,58890.0,58889.0,0.01216148]
[1617392379714,0.66253718,58890.0,58889.0,0.01216148]
[1617392380112,0.00253718,58890.0,58889.0,0.01216148]
[1617392382929,4.13726757,58890.0,58889.0,0.01216148]
[1617392383136,5.83297131,58890.0,58889.0,0.01216148]
[1617392383329,6.23297131,58890.0,58889.0,0.01216148]
[1617392383528,6.39697131,58890.0,58874.0,0.02]
[1617392383732,0.002,58886.0,58874.0,0.02]
[1617392383926,0.00300781,58884.0,58874.0,0.02]
[1617392384136,0.00300781,58881.0,58874.0,0.02]
[1617392384339,0.30973039,58880.0,58874.0,0.02]
[1617392384537,0.7099016,58880.0,58874.0,0.02]
[1617392384738,0.254817,58877.0,58874.0,0.02]
[1617392384937,1.06644399,58877.0,58874.0,0.02]
[1617392385133,0.34,58876.0,58874.0,0.02]
[1617392385536,0.05,58877.0,58874.0,0.02]
[1617392385733,3.02974,58875.0,58874.0,0.02]
[1617392385935,3.07974,58875.0,58874.0,0.02]
[1617392386540,0.91974,58875.0,58874.0,0.02]
[1617392386755,0.38974,58875.0,58874.0,0.02]
[1617392387154,3.50974,58875.0,58874.0,0.02]
[1617392388757,3.67447039,58875.0,58874.0,0.02]
[1617392388957,4.22947039,58875.0,58874.0,0.02]
[1617392389155,4.50968374,58875.0,58874.0,0.02]
[1617392389379,4.11474,58875.0,58874.0,0.02]
[1617392389580,4.67441413,58875.0,58874.0,0.02]
[1617392389776,4.55968374,58875.0,58874.0,0.02]
[1617392389979,4.79669921,58875.0,58874.0,0.02]
[1617392390177,5.22168374,58875.0,58874.0,0.02]
[1617392390577,4.16674,58875.0,58874.0,0.02]
[1617392390777,4.55968374,58875.0,58874.0,0.02]
[1617392391180,1.40965113,58875.0,58874.0,0.02]
[1617392391379,0.80465113,58875.0,58874.0,0.02]
[1617392391581,0.38974,58875.0,58874.0,0.02]
[1617392392011,2.29169286,58875.0,58874.0,0.02]
[1617392392216,2.05970732,58875.0,58874.0,0.02]
[1617392392410,2.44474,58875.0,58874.0,0.02]
[1617392392610,2.4647074,58875.0,58874.0,0.02]
[1617392393013,0.7647074,58875.0,58874.0,0.02]
[1617392393216,0.33974,58875.0,58874.0,0.02]
[1617392394015,1.21974,58875.0,58874.0,0.02]
[1617392394673,1.26974,58875.0,58874.0,0.02]
[1617392394869,1.31974,58875.0,58874.0,0.02]
[1617392395070,5.10468374,58875.0,58874.0,0.02]
[1617392395270,5.28109413,58875.0,58874.0,0.02]
[1617392396067,5.16636374,58875.0,58874.0,0.02]
[1617392396269,1.09636374,58875.0,58874.0,0.02]
[1617392396472,0.58974,58875.0,58874.0,0.02]
[1617392396675,0.33974,58875.0,58874.0,0.02]
[1617392397072,0.00300781,58882.0,58874.0,0.02]
[1617392397873,0.1177382,58882.0,58874.0,0.02]
[1617392398073,0.254795,58876.0,58874.0,0.02]
[1617392398275,0.707885,58876.0,58874.0,0.02]
[1617392398675,0.807885,58876.0,58874.0,0.015]
[1617392398876,4.39973039,58875.0,58874.0,0.015]
[1617392399075,4.79467413,58875.0,58874.0,0.015]
[1617392399275,5.41067413,58875.0,58874.0,0.015]
[1617392399881,5.24667413,58875.0,58874.0,0.015]
[1617392400482,5.40667413,58875.0,58874.0,0.015]
[1617392400688,5.70667413,58875.0,58874.0,0.015]
[1617392401084,5.70667413,58875.0,58874.0,0.01]
[1617392401285,5.97264438,58875.0,58874.0,0.01]
[1617392401886,5.97264438,58875.0,58874.0,0.0001]
[1617392402512,5.55791399,58875.0,58874.0,0.0001]
[1617392402914,5.57264438,58875.0,58874.0,0.0001]
[1617392403120,0.92791399,58875.0,58874.0,0.0001]
[1617392403318,0.53097025,58875.0,58874.0,0.0001]
[1617392403519,0.265,58875.0,58874.0,0.0001]
[1617392404315,0.254795,58876.0,58874.0,0.0001]
[1617392405757,0.304795,58876.0,58874.0,0.0001]
[1617392405953,3.72,58875.0,58857.0,0.24589498]
[1617392406155,0.52,58874.0,58862.0,0.0062]
[1617392406353,0.254825,58867.0,58862.0,0.0062]
[1617392406552,0.254825,58867.0,58863.0,0.88526961]
[1617392406755,0.254825,58867.0,58864.0,0.63931398]
[1617392406955,0.254825,58867.0,58865.0,0.88526961]
[1617392407154,0.254825,58867.0,58866.0,4.398519]
[1617392407355,0.254786,58872.0,58866.0,5.47378861]
[1617392407557,0.254786,58872.0,58868.0,0.388519]
[1617392408362,0.254786,58872.0,58866.0,0.0038]
[1617392408563,0.254786,58872.0,58864.0,0.004]
[1617392408761,0.254786,58872.0,58860.0,0.0056]
[1617392408959,0.254786,58872.0,58861.0,0.88526961]
[1617392409164,0.249786,58872.0,58861.0,0.88526961]
[1617392409360,0.249786,58872.0,58860.0,0.89086961]
[1617392409558,0.249786,58872.0,58861.0,0.88526961]
[1617392409798,0.249786,58872.0,58862.0,0.88526961]
[1617392409999,0.249786,58872.0,58863.0,0.25079498]
[1617392410201,0.299786,58872.0,58864.0,0.388519]
[1617392410397,0.299786,58872.0,58865.0,0.325]
[1617392410599,0.299786,58872.0,58866.0,0.388519]
[1617392411205,0.299786,58872.0,58864.0,0.004]
[1617392411399,0.299786,58872.0,58860.0,0.0054]
[1617392411600,0.299786,58872.0,58861.0,0.88526961]
[1617392412000,0.299786,58872.0,58860.0,0.0054]
[1617392412203,0.002,58874.0,58860.0,0.0054]
[1617392412204,0.254798,58870.0,58860.0,0.0054]
[1617392412602,0.25079498,58869.0,58860.0,0.0054]
[1617392413014,0.25279498,58869.0,58856.0,0.0544]
[1617392413218,0.135,58868.0,58856.0,0.0544]
[1617392413419,0.254837,58863.0,58856.0,0.0544]
[1617392413618,0.25079498,58862.0,58856.0,0.04097853]
[1617392413820,0.30079498,58862.0,58856.0,0.04097853]
[1617392414017,0.1,58861.0,58856.0,0.04097853]
[1617392414219,0.05,58862.0,58856.0,0.04097853]
[1617392414418,0.254876,58859.0,58856.0,0.04097853]
[1617392414612,0.304876,58859.0,58856.0,0.04097853]
[1617392415012,0.05,58859.0,58856.0,0.04097853]
[1617392415413,0.22,58860.0,58847.0,0.005]
[1617392415634,0.22,58860.0,58848.0,1.07026961]
[1617392415836,0.22,58860.0,58849.0,1.31127918]
[1617392416033,0.22,58860.0,58850.0,0.88526961]
[1617392416237,0.22,58860.0,58851.0,0.392919]
[1617392416436,0.339834,58858.0,58852.0,0.88526961]
[1617392416641,0.389834,58858.0,58851.0,0.0044]
[1617392416837,0.391834,58858.0,58845.0,0.32347853]
[1617392417035,0.391834,58858.0,58847.0,0.185]
[1617392417237,0.391834,58858.0,58848.0,0.88526961]
[1617392417441,0.391834,58858.0,58848.0,0.922777]
[1617392417635,0.391834,58858.0,58849.0,1.31129892]
[1617392417840,0.391834,58858.0,58850.0,0.88526961]
[1617392418038,0.254872,58855.0,58851.0,0.653519]
[1617392418263,0.254872,58855.0,58852.0,0.88526961]
[1617392418465,0.304872,58855.0,58853.0,0.388519]
[1617392418663,0.304872,58855.0,58854.0,0.88526961]
[1617392418865,0.304872,58855.0,58853.0,0.388519]
[1617392419262,0.254874,58852.0,58849.0,0.004]
[1617392419467,0.05,58855.0,58849.0,0.88526961]
[1617392419665,0.22,58860.0,58850.0,0.388519]
[1617392419867,0.22,58860.0,58850.0,0.593519]
[1617392420064,0.22,58860.0,58850.0,1.47878861]
[1617392420262,0.22,58860.0,58850.0,1.27378861]
[1617392420663,0.22,58860.0,58851.0,0.88526961]
[1617392420885,0.22,58860.0,58850.0,1.27378861]
[1617392421091,0.254862,58856.0,58850.0,1.27378861]
[1617392421284,0.254862,58856.0,58851.0,0.88526961]
[1617392421486,0.05,58856.0,58850.0,1.27378861]
[1617392421684,0.05,58856.0,58851.0,0.88526961]
[1617392421889,0.00390572,58858.0,58852.0,0.388519]
[1617392422494,0.254873,58853.0,58852.0,0.388519]
[1617392423293,0.598883,58853.0,58847.0,0.00752007]
[1617392423522,0.38901,58853.0,58847.0,0.00752007]
[1617392423728,0.175,58851.0,58847.0,0.00752007]
[1617392424757,0.254906,58850.0,58847.0,0.00752007]
[1617392425143,0.304906,58850.0,58847.0,0.00752007]
[1617392426766,0.10391334,58849.0,58847.0,0.00752007]
[1617392428364,0.21864373,58849.0,58847.0,0.00752007]
[1617392428563,0.10391334,58849.0,58847.0,0.00752007]
[1617392428769,4.70494374,58848.0,58847.0,0.00752007]
[1617392428970,5.08994374,58848.0,58847.0,0.00752007]
[1617392429168,5.43994374,58848.0,58847.0,0.00752007]
[1617392429968,5.73994374,58848.0,58847.0,0.00752007]
[1617392431171,5.38994374,58848.0,58847.0,0.00752007]
[1617392432399,1.335,58848.0,58847.0,0.00752007]
[1617392432602,0.785,58848.0,58847.0,0.00752007]
[1617392432800,0.15,58848.0,58847.0,0.00752007]
[1617392433404,0.05,58848.0,58847.0,0.00752007]
[1617392433607,0.00391334,58849.0,58847.0,0.00752007]
[1617392435615,0.29881934,58850.0,58847.0,0.00752007]
[1617392436215,0.24881934,58850.0,58847.0,0.00752007]
[1617392436414,0.29881934,58850.0,58847.0,0.00752007]
[1617392436648,0.29881934,58850.0,58847.0,0.00012007]
[1617392436848,0.24881934,58850.0,58847.0,0.00012007]
[1617392438447,0.29881934,58850.0,58847.0,0.00012007]
[1617392438844,0.15,58849.0,58847.0,0.00012007]
[1617392440287,0.05,58849.0,58847.0,0.00012007]
[1617392440500,0.24881934,58850.0,58847.0,0.00012007]
[1617392441089,0.29881934,58850.0,58847.0,0.00012007]
[1617392443520,0.24881934,58850.0,58847.0,0.00012007]
[1617392443721,0.24881934,58850.0,58848.0,0.88526961]
[1617392443928,0.17,58860.0,58849.0,0.63736872]
[1617392444125,0.17,58860.0,58850.0,0.24]
[1617392444320,0.17,58860.0,58851.0,0.388519]
[1617392444523,0.17,58860.0,58851.0,0.383519]
[1617392444734,0.17,58860.0,58847.0,0.00012007]
[1617392444928,0.00805281,58859.0,58847.0,0.00012007]
[1617392445330,0.145,58858.0,58847.0,0.00012007]
[1617392445528,0.005045,58857.0,58847.0,0.00012007]
[1617392445728,0.254888,58853.0,58847.0,0.00012007]
[1617392445929,0.127451,58853.0,58847.0,0.00012007]
[1617392446129,0.055045,58852.0,58847.0,0.00012007]
[1617392446327,0.05,58852.0,58848.0,0.88526961]
[1617392446534,0.1,58863.0,58849.0,0.428105]
[1617392446731,0.1,58863.0,58851.0,0.202]
[1617392446938,0.1,58863.0,58853.0,0.04]
[1617392447156,0.1,58863.0,58854.0,0.88026961]
[1617392447354,0.1,58863.0,58855.0,0.428105]
[1617392447553,0.1,58863.0,58859.0,4.398105]
[1617392447750,0.1,58863.0,58859.0,5.27837461]
[1617392447948,0.001197,58872.0,58859.0,4.398105]
[1617392449349,0.001197,58872.0,58859.0,5.128105]
[1617392449546,0.001197,58872.0,58859.0,6.00837461]
[1617392449979,0.001197,58872.0,58859.0,5.128105]
[1617392452406,0.17253849,58860.0,58859.0,5.285105]
[1617392452611,0.17253849,58860.0,58859.0,5.245105]
[1617392453007,0.17253849,58860.0,58859.0,5.235105]
[1617392453808,0.17253849,58860.0,58859.0,1.068105]
[1617392454018,0.17253849,58860.0,58859.0,0.378105]
[1617392454209,0.17253849,58860.0,58858.0,0.08392102]
[1617392454409,0.16253849,58860.0,58858.0,0.08392102]
[1617392454613,0.00199061,58870.0,58858.0,0.08392102]
[1617392454832,0.00199061,58870.0,58856.0,0.004]
[1617392455036,0.254822,58867.0,58856.0,0.004]
[1617392455249,0.254822,58867.0,58851.0,0.004]
[1617392455432,0.002,58865.0,58852.0,0.88026961]
[1617392455637,0.002,58865.0,58853.0,0.60808]
[1617392455937,0.002,58865.0,58854.0,0.38808]
[1617392456138,0.254822,58867.0,58857.0,0.38808]
[1617392456337,0.13039929,58871.0,58857.0,0.38808]
[1617392456338,0.1294035,58871.0,58857.0,0.38808]
[1617392456537,0.127411,58871.0,58858.0,0.15]
[1617392456734,0.177411,58871.0,58856.0,0.0048]
[1617392456942,0.015049,58870.0,58856.0,0.0048]
[1617392457134,0.177411,58871.0,58856.0,0.88506961]
[1617392457333,0.177411,58871.0,58856.0,0.0048]
[1617392457582,0.05,58871.0,58858.0,0.38808]
[1617392457789,0.05,58871.0,58859.0,0.88026961]
[1617392457986,0.255997,58872.0,58860.0,0.39268]
[1617392458181,0.255997,58872.0,58862.0,0.38808]
[1617392458381,0.305997,58872.0,58862.0,0.38808]
[1617392458783,0.255997,58872.0,58862.0,0.38808]
[1617392459782,0.155997,58872.0,58862.0,0.38808]
[1617392459980,0.155997,58872.0,58861.0,0.24770832]
[1617392461789,0.155997,58872.0,58862.0,0.38808]
[1617392462188,0.150997,58872.0,58861.0,0.24770832]
[1617392462389,0.150997,58872.0,58861.0,0.28770832]
[1617392462595,0.150997,58872.0,58862.0,0.163]
[1617392462806,0.150997,58872.0,58861.0,0.32086832]
[1617392463808,0.27072739,58872.0,58860.0,0.0046]
[1617392464006,0.150997,58872.0,58860.0,0.0046]
[1617392464209,0.002,58869.0,58856.0,0.004]
[1617392464410,0.002,58869.0,58851.0,0.004]
[1617392464609,0.002,58869.0,58856.0,0.0052]
[1617392464814,0.002,58871.0,58858.0,0.38808]
[1617392465010,0.1,58874.0,58860.0,0.42808]
[1617392465212,0.1,58874.0,58862.0,0.42808]
[1617392465443,0.25673292,58887.0,58867.0,0.54]
[1617392465648,0.25673292,58887.0,58874.0,0.0048]
[1617392465649,0.00199092,58887.0,58874.0,0.0048]
[1617392465842,0.1,58888.0,58875.0,0.04]
[1617392466038,0.1,58888.0,58882.0,0.04]
[1617392466241,0.1,58888.0,58883.0,0.24632398]
[1617392466434,0.00199077,58894.0,58883.0,0.24632398]
[1617392466740,0.00199077,58894.0,58886.0,0.0056]
[1617392466937,0.1,58895.0,58886.0,0.0056]
[1617392467137,0.11973039,58894.0,58886.0,0.0056]
[1617392467340,0.115049,58890.0,58885.0,0.17521]
[1617392467537,0.1,58890.0,58885.0,0.17521]
[1617392468171,0.1,58890.0,58886.0,0.24632398]
[1617392468363,0.1,58890.0,58886.0,0.65163398]
[1617392468558,0.1,58890.0,58887.0,0.24632398]
[1617392468759,0.1,58890.0,58886.0,0.40531]
[1617392471605,0.11973039,58889.0,58886.0,0.40531]
[1617392471808,0.15,58890.0,58885.0,0.17521]
[1617392472009,0.254757,58882.0,58873.0,0.9845]
[1617392472206,0.254757,58882.0,58874.0,0.145]
[1617392472404,0.304757,58882.0,58867.0,0.25112398]
[1617392472603,0.304757,58882.0,58868.0,0.88026961]
[1617392472805,0.304757,58882.0,58868.0,0.87026961]
[1617392473204,0.304757,58882.0,58868.0,0.91026961]
[1617392473418,0.304757,58882.0,58868.0,0.87026961]
[1617392473614,0.304757,58882.0,58870.0,0.295]
[1617392473816,0.304757,58882.0,58871.0,0.87486961]
[1617392474016,0.304757,58882.0,58871.0,0.0046]
[1617392474218,0.304757,58882.0,58872.0,0.87026961]
[1617392474421,0.254757,58882.0,58873.0,0.415]
[1617392474618,0.304757,58882.0,58871.0,0.2497952]
[1617392474816,0.304757,58882.0,58872.0,0.87026961]
[1617392475018,0.254733,58887.0,58872.0,0.87026961]
[1617392475218,0.254733,58887.0,58873.0,0.67191836]
[1617392475418,0.254733,58887.0,58876.0,0.0054]
[1617392476433,0.304733,58887.0,58876.0,0.0054]
[1617392476632,0.015049,58886.0,58876.0,0.0054]
[1617392476831,0.254733,58887.0,58872.0,0.155]
[1617392477033,0.254733,58887.0,58875.0,0.004]
[1617392477428,0.254733,58887.0,58876.0,1.02026961]
[1617392477632,0.254733,58887.0,58877.0,0.2451952]
[1617392478034,0.25790463,58887.0,58878.0,0.175]
[1617392478654,0.00317163,58887.0,58879.0,0.14]
[1617392478856,0.015049,58883.0,58879.0,0.14]
[1617392479058,0.015049,58883.0,58875.0,0.004]
[1617392479257,0.30790063,58887.0,58880.0,0.00751624]
[1617392479460,0.015049,58881.0,58880.0,0.00751624]
[1617392479863,0.269804,58881.0,58880.0,0.00751624]
[1617392480061,3.4405596,58881.0,58880.0,0.00751624]
[1617392480263,4.0755596,58881.0,58880.0,0.00751624]
[1617392480469,4.4255596,58881.0,58880.0,0.00751624]
[1617392480654,4.1755596,58881.0,58880.0,0.00751624]
[1617392480853,4.154804,58881.0,58880.0,0.00751624]
[1617392481056,4.53453439,58881.0,58880.0,0.00751624]
[1617392481901,5.44453439,58881.0,58880.0,0.00751624]
[1617392482103,5.54453439,58881.0,58880.0,0.00751624]
[1617392482304,4.63453439,58881.0,58880.0,0.00751624]
[1617392482502,4.504804,58881.0,58880.0,0.00751624]
[1617392482900,5.194804,58881.0,58880.0,0.00751624]
[1617392483102,4.504804,58881.0,58880.0,0.00751624]
[1617392483502,4.50797898,58881.0,58880.0,0.00751624]
[1617392483911,1.35797898,58881.0,58880.0,0.00751624]
[1617392484116,0.37297898,58881.0,58880.0,0.00751624]
[1617392484511,0.27297898,58881.0,58880.0,0.00751624]
[1617392484716,0.01822398,58881.0,58880.0,0.00751624]
[1617392487750,0.02121856,58881.0,58880.0,0.00751624]
[1617392487950,0.00317498,58881.0,58880.0,0.79751624]
[1617392488551,0.02022031,58881.0,58880.0,0.00751624]
[1617392488750,0.01822398,58881.0,58880.0,0.00751624]
[1617392489764,0.02021976,58881.0,58880.0,0.00751624]
[1617392489963,0.01822398,58881.0,58880.0,0.00751624]
[1617392490362,0.02021976,58881.0,58880.0,0.00751624]
[1617392491165,0.01822398,58881.0,58880.0,0.00751624]
[1617392491369,0.02121782,58881.0,58880.0,0.00751624]
[1617392491566,0.01822398,58881.0,58880.0,0.00751624]
[1617392491787,0.14822398,58881.0,58880.0,0.00751624]
[1617392492189,0.16818335,58881.0,58880.0,0.00751624]
[1617392492785,0.90818335,58881.0,58880.0,0.00751624]
[1617392493589,0.88822398,58881.0,58880.0,0.00751624]
[1617392493788,0.14822398,58881.0,58880.0,0.00751624]
[1617392493989,0.16818359,58881.0,58880.0,0.00751624]
[1617392494610,0.03318359,58881.0,58880.0,0.00751624]
[1617392494813,0.01621785,58881.0,58880.0,0.00751624]
[1617392495013,0.01322398,58881.0,58880.0,0.00751624]
[1617392495412,0.14822398,58881.0,58880.0,0.00751624]
[1617392495810,1.21822398,58881.0,58880.0,0.00751624]
[1617392496213,0.14822398,58881.0,58880.0,0.00751624]
[1617392496810,1.04822398,58881.0,58880.0,0.00751624]
[1617392497045,1.06818393,58881.0,58880.0,0.00751624]
[1617392497241,1.04822398,58881.0,58880.0,0.00751624]
[1617392497442,0.14822398,58881.0,58880.0,0.00751624]
[1617392497843,0.15121789,58881.0,58880.0,0.00751624]
[1617392498244,0.14822398,58881.0,58880.0,0.00751624]
[1617392498649,0.01996125,58882.0,58880.0,0.00251624]
[1617392498846,0.00199606,58881.0,58880.0,0.00251624]
[1617392499244,0.00199599,58882.0,58880.0,0.00251624]
[1617392499692,0.00199599,58883.0,58880.0,0.00251624]
[1617392500151,0.01994984,58886.0,58881.0,3.69]
[1617392500351,0.1,58889.0,58881.0,3.69]
[1617392500551,0.1,58887.0,58882.0,0.615]
[1617392500759,0.1,58887.0,58882.0,0.6196]
[1617392501152,0.1,58887.0,58882.0,0.8647952]
[1617392501352,0.1,58887.0,58882.0,0.0046]
[1617392501949,0.1,58887.0,58882.0,0.2046]
[1617392502409,0.1,58888.0,58882.0,0.2046]
[1617392504412,0.1,58886.0,58882.0,0.2]
[1617392505023,1.323244,58883.0,58882.0,0.2]
[1617392505224,0.013244,58883.0,58882.0,0.2]
[1617392505419,0.15,58886.0,58882.0,0.2]
[1617392505619,0.013244,58885.0,58882.0,0.2]
[1617392506017,0.15,58886.0,58882.0,0.2]
[1617392506427,2.563244,58883.0,58882.0,0.2]
[1617392506626,4.048244,58883.0,58882.0,0.2]
[1617392506824,3.008244,58883.0,58882.0,0.2]
[1617392507223,0.458244,58883.0,58882.0,0.2]
[1617392507451,0.318004,58883.0,58882.0,0.2]
[1617392507852,0.318004,58883.0,58882.0,0.4451952]
[1617392508050,0.268004,58883.0,58882.0,0.4451952]
[1617392508252,0.013244,58883.0,58882.0,0.2]
[1617392508452,0.1,58889.0,58882.0,0.366]
[1617392508654,0.095,58889.0,58883.0,0.2451952]
[1617392508852,0.09753736,58889.0,58884.0,0.18]
[1617392510267,0.09753736,58889.0,58884.0,0.54053]
[1617392510468,0.00253736,58889.0,58884.0,0.54053]
[1617392510867,0.00253736,58889.0,58885.0,0.145]
[1617392511471,0.25725936,58889.0,58885.0,0.145]
[1617392511672,0.30725936,58889.0,58885.0,0.145]
[1617392511874,0.013244,58886.0,58885.0,0.145]
[1617392512069,0.013244,58886.0,58882.0,0.2]
[1617392512706,0.25725936,58889.0,58885.0,0.156]
[1617392512902,0.00253736,58889.0,58886.0,0.24]
[1617392514300,0.00253736,58889.0,58885.0,0.35909]
[1617392515190,0.00253736,58889.0,58885.0,0.6042852]
[1617392516043,4.25516878,58889.0,58882.0,0.2]
[1617392516242,0.013244,58885.0,58882.0,0.2]
[1617392516440,3.583244,58883.0,58882.0,0.2]
[1617392516638,0.444544,58883.0,58882.0,0.2]
[1617392516839,0.704544,58883.0,58882.0,0.2]
[1617392517435,0.654544,58883.0,58882.0,0.2]
[1617392517638,0.704544,58883.0,58882.0,0.2]
[1617392518048,0.784854,58883.0,58882.0,0.2]
[1617392518247,1.02514008,58883.0,58882.0,0.2]
[1617392518445,0.784854,58883.0,58882.0,0.2]
[1617392518645,5.00514008,58883.0,58882.0,0.2]
[1617392518842,1.02514008,58883.0,58882.0,0.2]
[1617392519052,0.784854,58883.0,58882.0,0.2]
[1617392519248,0.704544,58883.0,58882.0,0.2]
[1617392520049,0.318244,58883.0,58882.0,0.2]
[1617392520253,0.108244,58883.0,58882.0,0.2]
[1617392520443,0.008244,58883.0,58882.0,0.2]
[1617392520673,0.00253736,58889.0,58882.0,4.83823408]
[1617392520869,0.00253736,58889.0,58883.0,0.725]
[1617392521070,0.00253736,58889.0,58884.0,0.39191836]
[1617392521266,0.00253736,58889.0,58883.0,0.725]
[1617392521467,0.00253736,58889.0,58884.0,0.39191836]
[1617392521666,0.00253736,58889.0,58883.0,0.725]
[1617392522068,0.25725036,58889.0,58883.0,0.725]
[1617392522268,0.25725036,58889.0,58884.0,0.8]
[1617392524685,0.25725036,58889.0,58884.0,1.19191836]
[1617392524887,0.25725036,58889.0,58885.0,0.387935]
[1617392525092,0.00253736,58889.0,58886.0,1.87026961]
[1617392525293,0.00253736,58889.0,58888.0,0.162]
[1617392525489,0.00253736,58889.0,58888.0,0.79022108]
[1617392525690,0.00253736,58889.0,58888.0,0.24028608]
[1617392525920,0.00253736,58889.0,58888.0,0.62822108]
[1617392526118,0.00253736,58889.0,58888.0,0.95822108]
[1617392526524,0.00253736,58889.0,58888.0,0.99822108]
[1617392526717,0.00253736,58889.0,58888.0,1.09822108]
[1617392527916,0.00253736,58889.0,58888.0,1.39822108]
[1617392528117,0.00253736,58889.0,58888.0,1.25822108]
[1617392528317,0.00253736,58889.0,58888.0,1.39822108]
[1617392528550,0.00253736,58889.0,58888.0,1.55822108]
[1617392529546,0.00253736,58889.0,58888.0,1.25822108]
[1617392529747,0.00253736,58889.0,58888.0,1.21822108]
[1617392530634,0.00253736,58889.0,58888.0,1.51822108]
[1617392530830,0.00253736,58889.0,58888.0,1.55822108]
[1617392531479,0.00253736,58889.0,58888.0,1.56573662]
[1617392532285,0.09836836,58890.0,58889.0,4.347935]
[1617392532480,0.09836836,58890.0,58889.0,4.852935]
[1617392532885,0.09836836,58890.0,58889.0,5.24485336]
[1617392533692,0.09836836,58890.0,58889.0,4.852935]
[1617392533892,0.09836836,58890.0,58889.0,5.24485336]
[1617392534293,0.09836836,58890.0,58889.0,4.852935]